[Event "White Rook U14 Final 2019"]
[Site "Sochi"]
[Date "2019.06.06"]
[Round "2.2"]
[White "Korotaev, Yaroslav"]
[Black "Pingin, Artem"]
[Result "0-1"]
[ECO "E16"]
[WhiteElo "1831"]
[BlackElo "2108"]
[Annotator "RC"]
[PlyCount "96"]
[EventDate "2019.06.02"]
[EventCountry "RUS"]
[SourceTitle "playchess.com"]
[Source "ChessBase"]
[SourceQuality "1"]
[TimeControl "5400+30"]

1. d4 {[%emt 0:00:00]} Nf6 {[%emt 0:00:00]} 2. c4 {[%emt 0:00:00]} e6 {[%emt 0:00:00]} 3. Nf3 {[%emt 0:00:00]} b6 {[%emt 0:00:00]} 4. g3 {[%emt 0:00:00]} Bb7 {[%emt 0:00:00]} 5. Bg2 {[%emt 0:00:00]} Bb4+ {[%emt 0:00:00]} 6. Bd2 {[%emt 0:00:00]} Be7 {[%emt 0:00:03]} 7. Nc3 {[%emt 0:00:00]} c6 {[%emt 0:00:00]} 8. O-O {[%emt 0:01:38]} O-O {[%emt 0:00:11]} 9. Bf4 {[%emt 0:12:45]} d5 {[%emt 0:00:00]} 10. Qd3 {[%emt 0:00:39]} Ba6 {[%emt 0:14:23]} 11. b3 {[%emt 0:00:00]} b5 {[%emt 0:01:37]} 12. cxb5 {[%emt 0:04:33]} cxb5 {[%emt 0:00:00]} 13. Nxb5 {[%emt 0:06:18]} Nc6 {[%emt 0:02:33]} 14. a4 {[%emt 0:01:29]} Nb4 {[%emt 0:06:40]} 15. Qd2 {[%emt 0:01:34]} Ne4 {[%emt 0:01:43]} 16. Qb2 {[%emt 0:00:00]} Bxb5 {[%emt 0:01:35]} 17. axb5 {[%emt 0:01:01]} Qb6 {[%emt 0:01:04]} 18. Ne5 {[%emt 0:00:36]} Qxb5 {[%emt 0:01:56]} 19. Bxe4 {[%emt 0:00:23]} dxe4 {[%emt 0:00:09]} 20. Nc4 {[%emt 0:01:59]} Rfd8 {[%emt 0:11:02]} 21. Rfd1 {[%emt 0:09:04]} Nd5 {[%emt 0:01:30]} 22. Bd2 {[%emt 0:02:42]} Rdc8 {[%emt 0:10:38]} 23. Rdc1 {[%emt 0:04:59]} h5 {[%emt 0:01:58]} 24. Ra5 {[%emt 0:07:00]} Qb7 {[%emt 0:00:43]} 25. Qa2 {[%emt 0:01:48]} h4 {[%emt 0:01:54]} 26. Ra1 {[%emt 0:01:39]} h3 {[%emt 0:02:34]} 27. Qb1 {[%emt 0:03:24]} e3 {[%emt 0:06:54]} 28. fxe3 {[%emt 0:06:13]} Nf6 {[%emt 0:11:20]} 29. Qf1 {[%emt 0:03:36]} Ne4 {[%emt 0:05:55]} 30. Qxh3 {[%emt 0:06:08]} f5 {[%emt 0:01:59]} 31. Bc1 {[%emt 0:05:28]} Qxb3 {[%emt 0:01:01]} 32. Ne5 {[%emt 0:06:35]} Rxc1+ {[%emt 0:00:16]} 33. Rxc1 {[%emt 0:00:06]} Qxe3+ {[%emt 0:00:34]} 34. Kg2 {[%emt 0:00:05]} Qxe2+ {[%emt 0:00:04]} 35. Kg1 {[%emt 0:00:29]} Qe3+ {[%emt 0:00:03]} 36. Kg2 {[%emt 0:00:06]} Qd2+ {[%emt 0:00:36]} 37. Kg1 {[%emt 0:01:50]} Qxc1+ {[%emt 0:00:00]} 38. Qf1 {[%emt 0:00:00]} Qe3+ {[%emt 0:02:10]} 39. Kh1 {[%emt 0:00:32]} Rc8 {[%emt 0:00:43]} 40. Ra1 {[%emt 0:00:04]} Nf2+ {[%emt 0:01:36]} 41. Kg2 {[%emt 0:00:33]} Rc2 {[%emt 0:00:24]} 42. Nf3 {[%emt 0:01:50]} Ng4+ {[%emt 0:00:15]} 43. Kh1 {[%emt 0:00:00]} Rf2 {[%emt 0:00:28]} 44. Qd1 {[%emt 0:01:28]} Rxh2+ {[%emt 0:00:01]} 45. Nxh2 {[%emt 0:00:00]} Nf2+ {[%emt 0:00:31]} 46. Kg2 {[%emt 0:00:00]} Nxd1 {[%emt 0:00:06]} 47. Rxd1 {[%emt 0:00:28]} Qe2+ {[%emt 0:00:03]} 48. Kh3 {[%emt 0:00:46]} Qxd1 {[%emt 0:00:08]} 0-1

[Event "White Rook U14 Final 2019"]
[Site "Sochi"]
[Date "2019.06.06"]
[Round "2.3"]
[White "Shirkunov, Alexandr"]
[Black "Kochetkov, Nikita"]
[Result "1-0"]
[ECO "D73"]
[WhiteElo "1557"]
[BlackElo "1380"]
[Annotator "NA RC"]
[PlyCount "93"]
[EventDate "2019.06.02"]
[EventCountry "RUS"]
[SourceTitle "playchess.com"]
[Source "ChessBase"]
[SourceQuality "1"]
[TimeControl "5400+30"]

1. d4 {[%emt 0:00:00]} d5 {[%emt 0:00:00]} 2. c4 {[%emt 0:00:00]} c6 {[%emt 0:00:00]} 3. Nf3 {[%emt 0:00:00]} Nf6 {[%emt 0:00:00]} 4. g3 {[%emt 0:00:00]} g6 {[%emt 0:00:23]} 5. Nc3 {[%emt 0:00:00]} Bg7 {[%emt 0:00:17]} 6. Bg2 {[%emt 0:00:00]} O-O {[%emt 0:00:50]} 7. Ne5 {[%emt 0:00:00]} e6 {[%emt 0:04:27]} 8. cxd5 {[%emt 0:07:08]} exd5 {[%emt 0:02:00]} 9. O-O {[%emt 0:01:55]} Nbd7 {[%emt 0:01:16]} 10. Nf3 {[%emt 0:04:30]} Re8 {[%emt 0:02:31]} 11. Qd3 {[%emt 0:00:30]} Ne4 {[%emt 0:00:53]} 12. Nd2 {[%emt 0:01:45]} Nxd2 {[%emt 0:01:59]} 13. Bxd2 {[%emt 0:13:44]} Qb6 {[%emt 0:04:14]} 14. e3 {[%emt 0:06:16]} Nf6 {[%emt 0:02:03]} 15. Na4 {[%emt 0:01:17]} Qc7 {[%emt 0:01:32]} 16. b4 {[%emt 0:00:41]} Bf5 {[%emt 0:01:26]} 17. Qb3 {[%emt 0:01:27]} Ne4 {[%emt 0:00:40]} 18. Qb2 {[%emt 0:01:56]} Nd6 {[%emt 0:01:06]} 19. Rfc1 {[%emt 0:02:34]} Be4 {[%emt 0:02:57]} 20. f3 {[%emt 0:00:28]} Bf5 {[%emt 0:08:51]} 21. Bf1 {[%emt 0:07:52]} Bh6 {[%emt 0:01:27]} 22. Qc3 {[%emt 0:01:18]} Qe7 {[%emt 0:03:21]} 23. Kf2 {[%emt 0:03:08]} Qf6 {[%emt 0:03:16]} 24. Kg2 {[%emt 0:01:25]} Qe6 {[%emt 0:03:38]} 25. Nc5 {[%emt 0:08:51]} Bh3+ {[%emt 0:06:21]} 26. Kg1 {[%emt 0:00:24]} Qf5 {[%emt 0:02:17]} 27. Bxh3 {[%emt 0:00:26]} Qxh3 {[%emt 0:02:20]} 28. Re1 {[%emt 0:17:32]} Nf5 {[%emt 0:00:43]} 29. e4 {[%emt 0:01:33]} Bxd2 {[%emt 0:10:14]} 30. Qxd2 {[%emt 0:00:22]} dxe4 {[%emt 0:03:07]} 31. fxe4 {[%emt 0:00:04]} Nd6 {[%emt 0:01:01]} 32. Qf4 {[%emt 0:00:03]} Nb5 {[%emt 0:00:53]} 33. d5 {[%emt 0:00:21]} b6 {[%emt 0:00:49]} 34. Nd3 {[%emt 0:05:02]} cxd5 {[%emt 0:01:40]} 35. exd5 {[%emt 0:01:14]} Qd7 {[%emt 0:05:02]} 36. Ne5 {[%emt 0:00:03]} Qxd5 {[%emt 0:04:01]} 37. Rad1 {[%emt 0:06:48]} Qe6 {[%emt 0:03:23]} 38. Ng4 {[%emt 0:00:32]} Qxe1+ {[%emt 0:00:34]} 39. Rxe1 {[%emt 0:00:34]} Rxe1+ {[%emt 0:00:49]} 40. Kf2 {[%emt 0:00:02]} Re6 {[%emt 0:00:07]} 41. Nh6+ {[%emt 0:00:25]} Kh8 {[%emt 0:00:17]} 42. Qxf7 {[%emt 0:00:15]} Rae8 {[%emt 0:03:22]} 43. Qd7 {[%emt 0:00:21]} Re2+ {[%emt 0:00:13]} 44. Kf3 {[%emt 0:01:15]} R2e3+ {[%emt 0:00:25]} 45. Kg4 {[%emt 0:00:06]} Nd4 {[%emt 0:01:44]} 46. Qxd4+ {[%emt 0:00:54]} R3e5 {[%emt 0:01:54]} 47. Nf7+ {[%emt 0:00:07]} 1-0

[Event "White Rook U14 Final 2019"]
[Site "Sochi"]
[Date "2019.06.06"]
[Round "2.4"]
[White "Korotaeva, Polina"]
[Black "Toledo Flores, Marianna"]
[Result "0-1"]
[ECO "A46"]
[WhiteElo "1154"]
[BlackElo "1530"]
[Annotator "NA RC"]
[PlyCount "86"]
[EventDate "2019.06.02"]
[EventCountry "RUS"]
[SourceTitle "playchess.com"]
[Source "ChessBase"]
[SourceQuality "1"]
[TimeControl "5400+30"]

1. Nf3 {[%emt 0:00:00]} Nf6 {[%emt 0:00:00]} 2. g3 {[%emt 0:00:00]} b5 {[%emt 0:00:00]} 3. Bg2 {[%emt 0:00:00]} Bb7 {[%emt 0:00:00]} 4. O-O {[%emt 0:00:00]} e6 {[%emt 0:00:00]} 5. d4 {[%emt 0:00:14]} c5 {[%emt 0:00:05]} 6. Be3 {[%emt 0:02:00]} Nd5 {[%emt 0:03:53]} 7. Qd2 {[%emt 0:02:21]} Qc7 {[%emt 0:00:50]} 8. Nc3 {[%emt 0:09:48]} Nxe3 {[%emt 0:00:27]} 9. Qxe3 {[%emt 0:01:17]} a6 {[%emt 0:00:18]} 10. Rad1 {[%emt 0:05:44]} cxd4 {[%emt 0:01:15]} 11. Qxd4 {[%emt 0:00:43]} Nc6 {[%emt 0:00:47]} 12. Qd2 {[%emt 0:00:35]} d5 {[%emt 0:00:48]} 13. Nd4 {[%emt 0:03:50]} Ne5 {[%emt 0:03:34]} 14. Qf4 {[%emt 0:05:09]} Bd6 {[%emt 0:01:17]} 15. Qc1 {[%emt 0:07:38]} Rc8 {[%emt 0:02:21]} 16. a3 {[%emt 0:04:01]} Nc4 {[%emt 0:00:49]} 17. Qa1 {[%emt 0:04:52]} Nxa3 {[%emt 0:01:34]} 18. bxa3 {[%emt 0:12:24]} Qxc3 {[%emt 0:00:42]} 19. Rd3 {[%emt 0:02:00]} Qxa1 {[%emt 0:00:46]} 20. Rxa1 {[%emt 0:00:09]} g6 {[%emt 0:00:57]} 21. a4 {[%emt 0:02:04]} b4 {[%emt 0:00:15]} 22. Rb1 {[%emt 0:02:12]} e5 {[%emt 0:04:04]} 23. Nb3 {[%emt 0:00:45]} e4 {[%emt 0:00:43]} 24. Rd2 {[%emt 0:01:01]} Ke7 {[%emt 0:00:20]} 25. Nd4 {[%emt 0:00:00]} Rc3 {[%emt 0:01:01]} 26. Ra1 {[%emt 0:02:07]} Rhc8 {[%emt 0:00:46]} 27. Bh3 {[%emt 0:02:45]} R8c7 {[%emt 0:02:10]} 28. Ra2 {[%emt 0:01:27]} Ra3 {[%emt 0:01:22]} 29. Rxa3 {[%emt 0:05:29]} bxa3 {[%emt 0:00:10]} 30. Rd1 {[%emt 0:01:05]} Be5 {[%emt 0:01:09]} 31. e3 {[%emt 0:00:31]} Bxd4 {[%emt 0:00:11]} 32. exd4 {[%emt 0:01:07]} Rxc2 {[%emt 0:00:53]} 33. Ra1 {[%emt 0:00:31]} a2 {[%emt 0:00:10]} 34. Kg2 {[%emt 0:00:50]} f5 {[%emt 0:00:14]} 35. Kg1 {[%emt 0:02:34]} Bc6 {[%emt 0:00:38]} 36. Bf1 {[%emt 0:00:31]} Bxa4 {[%emt 0:00:12]} 37. Bxa6 {[%emt 0:00:20]} Rd2 {[%emt 0:00:37]} 38. Kg2 {[%emt 0:01:34]} Bb3 {[%emt 0:00:00]} 39. Rc1 {[%emt 0:07:35]} Rd1 {[%emt 0:00:51]} 40. Rc7+ {[%emt 0:04:11]} Kd6 {[%emt 0:00:15]} 41. Rc3 {[%emt 0:01:12]} a1=Q {[%emt 0:00:35]} 42. Rxb3 {[%emt 0:00:05]} Qxa6 {[%emt 0:00:26]} 43. Rb8 {[%emt 0:00:22]} Qf1# {[%emt 0:00:29]} 0-1

[Event "White Rook U14 Final 2019"]
[Site "Sochi"]
[Date "2019.06.06"]
[Round "2.5"]
[White "Kurus, Artem"]
[Black "Mikheev, Aleksandr"]
[Result "1-0"]
[ECO "E70"]
[WhiteElo "1769"]
[BlackElo "1837"]
[Annotator "NA RC"]
[PlyCount "115"]
[EventDate "2019.06.02"]
[EventCountry "RUS"]
[SourceTitle "playchess.com"]
[Source "ChessBase"]
[SourceQuality "1"]
[TimeControl "5400+30"]

1. d4 {[%emt 0:00:00]} Nf6 {[%emt 0:00:00]} 2. c4 {[%emt 0:00:00]} g6 {[%emt 0:00:00]} 3. Nc3 {[%emt 0:00:00]} Bg7 {[%emt 0:00:00]} 4. e4 {[%emt 0:00:00]} d6 {[%emt 0:00:00]} 5. Bd3 {[%emt 0:00:00]} O-O {[%emt 0:00:42]} 6. Nge2 {[%emt 0:00:00]} e5 {[%emt 0:00:49]} 7. d5 {[%emt 0:00:00]} Nbd7 {[%emt 0:01:10]} 8. O-O {[%emt 0:01:40]} a5 {[%emt 0:02:13]} 9. f3 {[%emt 0:01:01]} Nc5 {[%emt 0:02:25]} 10. Bc2 {[%emt 0:00:34]} Bd7 {[%emt 0:05:23]} 11. Be3 {[%emt 0:02:20]} Nh5 {[%emt 0:02:19]} 12. Qd2 {[%emt 0:07:35]} Qe7 {[%emt 0:06:12]} 13. Rab1 {[%emt 0:06:38]} b6 {[%emt 0:09:11]} 14. b3 {[%emt 0:02:26]} f5 {[%emt 0:02:37]} 15. exf5 {[%emt 0:00:16]} Bxf5 {[%emt 0:01:46]} 16. Ne4 {[%emt 0:02:26]} Nxe4 {[%emt 0:00:17]} 17. Bxe4 {[%emt 0:01:10]} Bxe4 {[%emt 0:03:52]} 18. fxe4 {[%emt 0:00:36]} Qh4 {[%emt 0:03:55]} 19. Qd3 {[%emt 0:02:13]} Nf6 {[%emt 0:03:07]} 20. Nc3 {[%emt 0:08:01]} Ng4 {[%emt 0:00:57]} 21. h3 {[%emt 0:00:41]} Nxe3 {[%emt 0:00:06]} 22. Qxe3 {[%emt 0:00:05]} Bh6 {[%emt 0:00:00]} 23. Qd3 {[%emt 0:07:13]} Rxf1+ {[%emt 0:02:32]} 24. Rxf1 {[%emt 0:00:03]} Rf8 {[%emt 0:00:22]} 25. Rxf8+ {[%emt 0:10:06]} Kxf8 {[%emt 0:00:06]} 26. Nb5 {[%emt 0:13:24]} Ke7 {[%emt 0:06:30]} 27. Qf1 {[%emt 0:06:02]} Kd8 {[%emt 0:06:39]} 28. Kh1 {[%emt 0:06:12]} Bf4 {[%emt 0:03:13]} 29. Qe2 {[%emt 0:03:38]} Qg3 {[%emt 0:00:00]} 30. Kg1 {[%emt 0:00:29]} h5 {[%emt 0:02:06]} 31. Kf1 {[%emt 0:02:04]} Qh2 {[%emt 0:02:57]} 32. Qf2 {[%emt 0:01:33]} Kd7 {[%emt 0:01:58]} 33. Nc3 {[%emt 0:02:41]} g5 {[%emt 0:02:50]} 34. Ne2 {[%emt 0:00:55]} g4 {[%emt 0:00:25]} 35. Qg1 {[%emt 0:01:32]} g3 {[%emt 0:02:03]} 36. Ke1 {[%emt 0:00:23]} Qxg1+ {[%emt 0:04:13]} 37. Nxg1 {[%emt 0:00:00]} Be3 {[%emt 0:00:18]} 38. Nf3 {[%emt 0:00:32]} Ke7 {[%emt 0:01:12]} 39. Ke2 {[%emt 0:01:46]} Bf2 {[%emt 0:01:09]} 40. Ng5 {[%emt 0:03:56]} Kf6 {[%emt 0:00:21]} 41. h4 {[%emt 0:00:00]} Kg6 {[%emt 0:00:50]} 42. Ne6 {[%emt 0:00:57]} Kf7 {[%emt 0:01:51]} 43. Nxc7 {[%emt 0:00:07]} Ke7 {[%emt 0:00:19]} 44. Ne6 {[%emt 0:00:00]} Kf6 {[%emt 0:00:15]} 45. Ng5 {[%emt 0:00:12]} Bd4 {[%emt 0:01:44]} 46. Kf3 {[%emt 0:00:41]} Bf2 {[%emt 0:00:09]} 47. Nh3 {[%emt 0:00:03]} Be1 {[%emt 0:00:00]} 48. Ng1 {[%emt 0:00:05]} Kg6 {[%emt 0:01:05]} 49. Ne2 {[%emt 0:00:08]} Bf2 {[%emt 0:00:30]} 50. Nxg3 {[%emt 0:00:04]} Bc5 {[%emt 0:00:06]} 51. Nf5 {[%emt 0:00:05]} Bb4 {[%emt 0:00:05]} 52. g4 {[%emt 0:00:27]} Ba3 {[%emt 0:00:00]} 53. Ng3 {[%emt 0:00:11]} hxg4+ {[%emt 0:00:00]} 54. Kxg4 {[%emt 0:00:00]} Bb4 {[%emt 0:01:09]} 55. h5+ {[%emt 0:00:05]} Kh7 {[%emt 0:00:05]} 56. Nf5 {[%emt 0:00:38]} Ba3 {[%emt 0:00:08]} 57. Kg5 {[%emt 0:00:04]} Bc1+ {[%emt 0:00:00]} 58. Kf6 {[%emt 0:00:06]} 1-0

[Event "White Rook U14 Final 2019"]
[Site "Sochi"]
[Date "2019.06.06"]
[Round "2.6"]
[White "Busygin, Kirill"]
[Black "Usov, Aleksandr E."]
[Result "1-0"]
[ECO "D93"]
[WhiteElo "1758"]
[BlackElo "1812"]
[Annotator "NA RC"]
[PlyCount "143"]
[EventDate "2019.06.02"]
[EventCountry "RUS"]
[SourceTitle "playchess.com"]
[Source "ChessBase"]
[SourceQuality "1"]
[TimeControl "5400+30"]

1. d4 {[%emt 0:00:00]} c6 {[%emt 0:00:00]} 2. Nf3 {[%emt 0:00:00]} d5 {[%emt 0:00:00]} 3. Bf4 {[%emt 0:01:58]} Nf6 {[%emt 0:00:25]} 4. e3 {[%emt 0:00:15]} Bf5 {[%emt 0:00:11]} 5. Bd3 {[%emt 0:01:26]} Bxd3 {[%emt 0:00:53]} 6. Qxd3 {[%emt 0:01:31]} Nbd7 {[%emt 0:00:25]} 7. h3 {[%emt 0:00:55]} g6 {[%emt 0:00:38]} 8. O-O {[%emt 0:00:24]} Bg7 {[%emt 0:01:32]} 9. c4 {[%emt 0:02:39]} O-O {[%emt 0:00:29]} 10. Nc3 {[%emt 0:00:28]} e6 {[%emt 0:04:13]} 11. b4 {[%emt 0:02:44]} Nb6 {[%emt 0:00:01]} 12. c5 {[%emt 0:04:23]} Nc4 {[%emt 0:18:14]} 13. Ne5 {[%emt 0:09:12]} Nxe5 {[%emt 0:00:09]} 14. Bxe5 {[%emt 0:03:30]} Nd7 {[%emt 0:01:11]} 15. Bxg7 {[%emt 0:00:58]} Kxg7 {[%emt 0:00:08]} 16. b5 {[%emt 0:07:52]} Qc7 {[%emt 0:00:44]} 17. bxc6 {[%emt 0:04:11]} bxc6 {[%emt 0:00:46]} 18. Rab1 {[%emt 0:04:10]} e5 {[%emt 0:00:57]} 19. Rb2 {[%emt 0:01:06]} Rab8 {[%emt 0:01:12]} 20. Rfb1 {[%emt 0:05:18]} Rxb2 {[%emt 0:00:00]} 21. Rxb2 {[%emt 0:03:24]} e4 {[%emt 0:00:41]} 22. Qb1 {[%emt 0:00:00]} Rb8 {[%emt 0:00:29]} 23. Rxb8 {[%emt 0:02:39]} Nxb8 {[%emt 0:00:44]} 24. a3 {[%emt 0:05:47]} f5 {[%emt 0:00:02]} 25. g3 {[%emt 0:01:15]} g5 {[%emt 0:00:13]} 26. Qd1 {[%emt 0:00:57]} Kg6 {[%emt 0:00:35]} 27. Na2 {[%emt 0:02:38]} h5 {[%emt 0:01:41]} 28. Qb3 {[%emt 0:04:51]} h4 {[%emt 0:08:11]} 29. gxh4 {[%emt 0:02:20]} f4 {[%emt 0:07:55]} 30. hxg5 {[%emt 0:02:05]} f3 {[%emt 0:01:05]} 31. Qb1 {[%emt 0:04:03]} Kxg5 {[%emt 0:00:16]} 32. Kh1 {[%emt 0:01:40]} Kh4 {[%emt 0:00:52]} 33. Qg1 {[%emt 0:01:36]} Kxh3 {[%emt 0:12:36]} 34. Qf1+ {[%emt 0:00:19]} Kh4 {[%emt 0:00:13]} 35. Qg1 {[%emt 0:00:06]} Kh5 {[%emt 0:00:06]} 36. Qg8 {[%emt 0:00:13]} Nd7 {[%emt 0:02:54]} 37. Qf7+ {[%emt 0:01:55]} Kh6 {[%emt 0:04:12]} 38. Nb4 {[%emt 0:01:26]} a5 {[%emt 0:00:20]} 39. Qe6+ {[%emt 0:00:56]} Kg7 {[%emt 0:02:05]} 40. Nxc6 {[%emt 0:00:41]} Qb7 {[%emt 0:01:35]} 41. Ne5 {[%emt 0:01:02]} Nxe5 {[%emt 0:06:09]} 42. Qxe5+ {[%emt 0:09:51]} Kg8 {[%emt 0:01:45]} 43. Qe8+ {[%emt 0:00:18]} Kg7 {[%emt 0:00:02]} 44. Qe5+ {[%emt 0:00:36]} Kg8 {[%emt 0:02:20]} 45. Qg5+ {[%emt 0:00:30]} Kh8 {[%emt 0:00:26]} 46. Kh2 {[%emt 0:02:22]} Qh7+ {[%emt 0:04:49]} 47. Kg3 {[%emt 0:01:14]} Qb7 {[%emt 0:00:49]} 48. Qh6+ {[%emt 0:00:30]} Kg8 {[%emt 0:00:20]} 49. Qe6+ {[%emt 0:01:30]} Kf8 {[%emt 0:00:12]} 50. c6 {[%emt 0:00:04]} Qc7+ {[%emt 0:00:58]} 51. Kg4 {[%emt 0:02:39]} Qg7+ {[%emt 0:01:07]} 52. Kf4 {[%emt 0:00:10]} Qc7+ {[%emt 0:00:10]} 53. Kf5 {[%emt 0:00:18]} Qh2 {[%emt 0:00:57]} 54. Qc8+ {[%emt 0:00:14]} Kf7 {[%emt 0:00:24]} 55. Qd7+ {[%emt 0:00:33]} Kf8 {[%emt 0:00:19]} 56. Ke6 {[%emt 0:00:29]} Qh6+ {[%emt 0:00:49]} 57. Kxd5 {[%emt 0:00:12]} Qg5+ {[%emt 0:00:19]} 58. Kxe4 {[%emt 0:00:41]} Qh4+ {[%emt 0:00:56]} 59. Kxf3 {[%emt 0:00:06]} Qh1+ {[%emt 0:00:00]} 60. Kf4 {[%emt 0:00:17]} Qh4+ {[%emt 0:00:43]} 61. Ke5 {[%emt 0:00:19]} Qh8+ {[%emt 0:00:33]} 62. Kd6 {[%emt 0:00:24]} Qf6+ {[%emt 0:00:16]} 63. Kc5 {[%emt 0:00:29]} Qg5+ {[%emt 0:00:34]} 64. d5 {[%emt 0:01:13]} Qe5 {[%emt 0:00:11]} 65. Qd6+ {[%emt 0:00:06]} Qxd6+ {[%emt 0:00:07]} 66. Kxd6 {[%emt 0:00:00]} a4 {[%emt 0:00:13]} 67. c7 {[%emt 0:00:10]} Kg7 {[%emt 0:00:04]} 68. c8=Q {[%emt 0:00:06]} Kh7 {[%emt 0:00:07]} 69. Qg4 {[%emt 0:00:07]} Kh6 {[%emt 0:00:08]} 70. Ke7 {[%emt 0:00:04]} Kh7 {[%emt 0:00:04]} 71. Kf7 {[%emt 0:00:06]} Kh6 {[%emt 0:00:12]} 72. Qg6# {[%emt 0:00:04]} 1-0

[Event "White Rook U14 Final 2019"]
[Site "Sochi"]
[Date "2019.06.06"]
[Round "2.9"]
[White "Greno, Pavol"]
[Black "Magomedov, Adam"]
[Result "0-1"]
[ECO "C00"]
[WhiteElo "1588"]
[BlackElo "1773"]
[Annotator "NA RC"]
[PlyCount "70"]
[EventDate "2019.06.02"]
[EventCountry "RUS"]
[SourceTitle "playchess.com"]
[Source "ChessBase"]
[SourceQuality "1"]
[TimeControl "5400+30"]

1. e4 {[%emt 0:00:00]} e6 {[%emt 0:00:00]} 2. d3 {[%emt 0:00:00]} b6 {[%emt 0:00:00]} 3. g3 {[%emt 0:00:06]} Bb7 {[%emt 0:00:00]} 4. Bg2 {[%emt 0:00:33]} f5 {[%emt 0:00:00]} 5. Nd2 {[%emt 0:01:12]} Nf6 {[%emt 0:00:15]} 6. Ne2 {[%emt 0:03:04]} fxe4 {[%emt 0:02:26]} 7. Nxe4 {[%emt 0:00:47]} Nxe4 {[%emt 0:00:11]} 8. dxe4 {[%emt 0:01:07]} Bc5 {[%emt 0:02:24]} 9. Nd4 {[%emt 0:03:31]} O-O {[%emt 0:05:55]} 10. Be3 {[%emt 0:04:03]} e5 {[%emt 0:04:08]} 11. Nf5 {[%emt 0:09:36]} Rxf5 {[%emt 0:02:48]} 12. Bxc5 {[%emt 0:00:40]} bxc5 {[%emt 0:00:04]} 13. exf5 {[%emt 0:03:27]} Bxg2 {[%emt 0:00:35]} 14. f3 {[%emt 0:00:59]} Qg5 {[%emt 0:25:26]} 15. f4 {[%emt 0:34:27]} Qxf5 {[%emt 0:05:02]} 16. Rg1 {[%emt 0:00:54]} Bc6 {[%emt 0:01:05]} 17. Qe2 {[%emt 0:02:44]} e4 {[%emt 0:04:17]} 18. O-O-O {[%emt 0:01:13]} d5 {[%emt 0:00:36]} 19. c3 {[%emt 0:01:23]} Qf6 {[%emt 0:02:39]} 20. Qh5 {[%emt 0:02:02]} Qf7 {[%emt 0:12:11]} 21. Qe5 {[%emt 0:01:19]} Na6 {[%emt 0:00:33]} 22. f5 {[%emt 0:00:57]} Re8 {[%emt 0:03:01]} 23. Qf4 {[%emt 0:00:44]} e3 {[%emt 0:00:00]} 24. Rge1 {[%emt 0:00:41]} e2 {[%emt 0:01:41]} 25. Rd2 {[%emt 0:00:38]} Bb5 {[%emt 0:00:00]} 26. b3 {[%emt 0:01:41]} Qf6 {[%emt 0:01:22]} 27. Kc2 {[%emt 0:00:41]} Re4 {[%emt 0:00:41]} 28. Qf3 {[%emt 0:03:08]} Re5 {[%emt 0:05:34]} 29. g4 {[%emt 0:01:09]} d4 {[%emt 0:01:00]} 30. Qa8+ {[%emt 0:02:40]} Kf7 {[%emt 0:03:55]} 31. c4 {[%emt 0:00:30]} d3+ {[%emt 0:01:29]} 32. Kb1 {[%emt 0:02:32]} Bc6 {[%emt 0:00:00]} 33. Qxa7 {[%emt 0:00:00]} Re8 {[%emt 0:00:00]} 34. g5 {[%emt 0:05:39]} Qd6 {[%emt 0:01:31]} 35. Qxa6 {[%emt 0:01:39]} Ra8 {[%emt 0:00:08]} 0-1

[Event "White Rook U14 Final 2019"]
[Site "Sochi"]
[Date "2019.06.06"]
[Round "2.10"]
[White "Seregin, Ignat"]
[Black "Kuzma, Samuel"]
[Result "1-0"]
[ECO "C02"]
[WhiteElo "1687"]
[BlackElo "1496"]
[Annotator "NA RC"]
[PlyCount "81"]
[EventDate "2019.06.02"]
[EventCountry "RUS"]
[SourceTitle "playchess.com"]
[Source "ChessBase"]
[SourceQuality "1"]
[TimeControl "5400+30"]

1. e4 {[%emt 0:00:00]} e6 {[%emt 0:00:00]} 2. d4 {[%emt 0:00:00]} d5 {[%emt 0:00:00]} 3. e5 {[%emt 0:00:00]} c5 {[%emt 0:00:00]} 4. c3 {[%emt 0:00:00]} Bd7 {[%emt 0:00:27]} 5. a3 {[%emt 0:00:00]} Qb6 {[%emt 0:01:07]} 6. Nf3 {[%emt 0:01:25]} Bb5 {[%emt 0:01:07]} 7. Bxb5+ {[%emt 0:01:49]} Qxb5 {[%emt 0:00:08]} 8. b4 {[%emt 0:00:51]} cxb4 {[%emt 0:01:14]} 9. cxb4 {[%emt 0:00:00]} Ne7 {[%emt 0:01:35]} 10. Nc3 {[%emt 0:01:20]} Qb6 {[%emt 0:01:36]} 11. Na4 {[%emt 0:21:38]} Qc7 {[%emt 0:01:11]} 12. Bb2 {[%emt 0:00:40]} Nd7 {[%emt 0:01:15]} 13. Rc1 {[%emt 0:01:05]} Qd8 {[%emt 0:00:11]} 14. Nc5 {[%emt 0:01:26]} Nxc5 {[%emt 0:00:52]} 15. Rxc5 {[%emt 0:05:23]} Nc6 {[%emt 0:01:18]} 16. Rc1 {[%emt 0:00:39]} Be7 {[%emt 0:00:38]} 17. Nd2 {[%emt 0:12:58]} Bg5 {[%emt 0:01:59]} 18. O-O {[%emt 0:00:00]} Bxd2 {[%emt 0:01:02]} 19. Qxd2 {[%emt 0:00:00]} O-O {[%emt 0:00:20]} 20. Rc5 {[%emt 0:05:53]} Qd7 {[%emt 0:03:16]} 21. Rfc1 {[%emt 0:11:52]} Rac8 {[%emt 0:03:02]} 22. Qc3 {[%emt 0:11:11]} Ne7 {[%emt 0:01:30]} 23. Rc7 {[%emt 0:02:03]} Rxc7 {[%emt 0:00:02]} 24. Qxc7 {[%emt 0:00:06]} Rd8 {[%emt 0:00:38]} 25. b5 {[%emt 0:08:59]} h5 {[%emt 0:02:46]} 26. g3 {[%emt 0:02:51]} Nf5 {[%emt 0:03:10]} 27. h3 {[%emt 0:00:30]} Kh8 {[%emt 0:09:30]} 28. Kg2 {[%emt 0:05:12]} Kg8 {[%emt 0:00:54]} 29. a4 {[%emt 0:01:23]} g6 {[%emt 0:02:28]} 30. g4 {[%emt 0:00:22]} hxg4 {[%emt 0:00:19]} 31. hxg4 {[%emt 0:00:05]} Ng7 {[%emt 0:01:21]} 32. Ba3 {[%emt 0:01:12]} Kh7 {[%emt 0:03:00]} 33. Be7 {[%emt 0:01:38]} Qxc7 {[%emt 0:01:31]} 34. Rxc7 {[%emt 0:00:05]} Rb8 {[%emt 0:00:00]} 35. Bd6 {[%emt 0:01:22]} Kg8 {[%emt 0:01:05]} 36. Rd7 {[%emt 0:00:49]} Rc8 {[%emt 0:01:18]} 37. Rxb7 {[%emt 0:00:00]} Rc4 {[%emt 0:00:46]} 38. Bc5 {[%emt 0:00:00]} Rxa4 {[%emt 0:00:00]} 39. Rxa7 {[%emt 0:00:01]} Rc4 {[%emt 0:01:17]} 40. b6 {[%emt 0:00:12]} Rc2 {[%emt 0:00:39]} 41. b7 {[%emt 0:00:40]} 1-0